{"text_format":"1","workbook":"xlsx","n_sheets":3,"sheets":["診断を行う前に","クラブ診断シート","集計用(触らないでください)"],"not_rendered":{"charts":1,"images":0,"macros":1,"external_links":0,"defined_names":2,"comments":0,"pivot_tables":0},"unopened":[],"bounds":{"document_bytes":16777216,"sheet_cells":100000,"rows_first":2000,"rows_last":500,"rows_between":2000,"halvings":0,"cell_chars":16384,"cell_head_chars":4096},"cells_cut":0,"cells_raw":0,"read":"whole","date_system":"1900"}

{"sheet":"診断を行う前に","index":0,"n_rows":36,"n_cols":2,"rows_kept":36,"cut":false,"hidden":false,"merged":[[26,1,26,10],[29,1,29,10],[35,1,35,10]]}
[]
[]
[]
[]
[]
[]
[]
[]
[]
[]
[]
[]
[]
[]
[]
[]
[]
[]
[]
[]
[]
[]
[]
[]
[]
["◇はじめに"]
[null,"　本シートの目的は，「評価すること」「評価を受けさせること」にあるのではありません。\n　評価を活用してクラブ経営を客観的に分析し，より良いクラブ経営となるべく判断材料とします。クラブの批判ではなく，より高い成果を地域に還元できるクラブとなるための「位置確認」をするために活用されることが大切です。\n　更に，\n　　①クラブの役割について理解する\n　　②クラブ経営に改善が必要とする分野を明確にする\n　　③クラブの体制や将来像を描くこと\nにも活用していただきたいと思います。\n　　　　"]
["◇診断シートの活用で得られる効用"]
[null,"○　クラブ自身の経営状況が客観的に確認でき，改善のアイデアの発見につなげられる。"]
[null,"○　他のクラブの活動内容が同一の指標で共有でき，自らのクラブの改善資料として活用できる。"]
[null,"○　これからの新たなクラブ支援策を構築する上で基礎資料とすることができる。"]
[null,"○　新たなクラブの設立に向けた機運が高められる。"]
[null,"○　クラブに求められている形態や機能，役割が明らかになる。"]
[]
["◇シートの活用方法"]
[null,"　このシートは，円滑なクラブ運営に向けた６つの観点に沿って複数のチェック項目を設定しています。\n　各チェック項目は点数化されています。これを合計するとその観点でのクラブの状況が見えてきます。点数が高い項目が現在のクラブの強みであり，逆に低い項目はクラブとして改善していくべき点であることがわかります。\n　本シートを活用し，クラブ経営のあり方を確認する際は，運営スタッフやクラブ会員と併せて，市町村総合型地域スポーツクラブ担当係や県広域スポーツセンター職員等とも一緒に確認したり，協議したりすることなどにより，多角的な面から今後クラブが取り組む事項がより明確になります。\n　また，本シートにおいて，太字のチェック項目が「県広域スポーツセンター認定クラブ」の認定条件です。\n　○のチェック項目は，（公財）日本スポーツ協会の「登録・認証クラブ」制度の「必ず満たすべき運用ルール」となっています。\n　☆のチェック項目は，クラブにおいて備えておくべきであると推奨していること（（公財）日本スポーツ協会が示す「持続可能な地域クラブの指針」：登録時の提出資料から抜粋）になります。"]

{"sheet":"クラブ診断シート","index":1,"n_rows":191,"n_cols":13,"rows_kept":191,"cut":false,"hidden":false,"merged":[[190,0,190,12],[0,5,0,6],[0,8,0,12],[1,0,1,12],[3,1,3,12],[23,0,23,12],[25,1,25,12],[63,0,63,12],[151,0,151,12],[153,1,153,12],[65,1,65,12],[92,0,92,12],[94,1,94,12],[128,0,128,12],[130,1,130,12]]}
[null,null,null,null,null,"クラブ名"]
["■経営状況確認１：明確な理念"]
[]
[null,"　クラブの重要な責任の一つは，クラブの活動理念や目的（クラブが地域に存在する理由や目的）をわかりやすい言葉によって明確にし，クラブの活動によって地域にどんな変化をもたらそうとしているのか（公益活動：不特定多数の者の利益）を具体的に明文化し，多くの関係者と理念を共有することにあります。さらに，この活動目的に沿った事業を適切に行うことが重要です。クラブの事業が金銭的な利益だけを優先する事業になってはいけません。理念の明文化だけでなく，以下の視点も重要になります。\n　①活動理念や目的が，理解・支持される\n　②活動目的に沿って事業を適切に行っている\n　③定期的に見直す仕組みがある"]
[]
["○","１ 地域社会全体の利益となるクラブの理念・目的を明確にし，設立趣旨書や規約などを明文化",null,null,null,null,null,null,null,null,null,null,"点数"]
[null,null,"している。"]
[null,null,null,null,0,"している(6)",null,0,"していない(0)",null,null,{"$f":"IF(E8=-1,7,IF(H8=-1,1,0))","v":0},{"$f":"IF(L8>=1,L8-1,0)","v":0}]
[null,"２ クラブの理念をわかりやすい言葉にして（キャッチコピーなど）会員に伝えている。"]
[null,null,null,null,0,"している(5)",null,0,"していない(0)",null,null,{"$f":"IF(E10=-1,6,IF(H10=-1,1,0))","v":0},{"$f":"IF(L10>=1,L10-1,0)","v":0}]
[null,"３ クラブの理念はクラブ関係者（理事・指導者など）から支持されている。"]
[null,null,null,null,0,"全員から支持されている(3)",null,0,"過半数から支持されている(2)",null,null,{"$f":"IF(E12=-1,4,IF(H12=-1,3,IF(E13=-1,2,IF(H13=-1,1,0))))","v":0},{"$f":"IF(L12>=1,L12-1,0)","v":0}]
[null,null,null,null,0,"あまり支持されていない(1)",null,0,"していない(0)"]
[null,"４ 会員はクラブの理念を理解して入会している。（入会申込書にクラブの理念を確認するチェック欄を"]
[null,null,"設けるなど）"]
[null,null,null,null,0,"理解している(3)",null,0,"やや理解している(2)",null,null,{"$f":"IF(E16=-1,4,IF(H16=-1,3,IF(E17=-1,2,IF(H17=-1,1,0))))","v":0},{"$f":"IF(L16>=1,L16-1,0)","v":0}]
[null,null,null,null,0,"あまり理解していない(1)",null,0,"全く理解していない(0)"]
[null,"５ クラブの理事会や委員会は，クラブの活動理念や目的を反映し，また見直す機会になっている（議題"]
[null,null,"の中に盛り込まれているか）"]
[null,null,null,null,0,"常になっている(3)",null,0,"ややなっている(2)",null,null,{"$f":"IF(E20=-1,4,IF(H20=-1,3,IF(E21=-1,2,IF(H21=-1,1,0))))","v":0},{"$f":"IF(L20>=1,L20-1,0)","v":0}]
[null,null,null,null,0,"あまりなっていない(1)",null,0,"全くなっていない(0)"]
[null,null,null,null,null,null,null,null,"経営状況確認１の合計",null,{"$f":"SUM(M8:M20)","v":0},null,"／20"]
[]
["■経営状況確認２：継続的な事業展開"]
[]
[null,"　クラブは，具体的なスポーツプログラムを地域に提供することを通じて，クラブの活動理念を遂行します。そのため，地域住民の特定のニーズではなく，（例：○○大会で優勝したい），多様なニーズに応えること（例：スポーツを通じて健康になりたい，地域とのコミュニケーションを図りたいなど）が重要です。このことは，結果として「多種目・多世代・多志向」といった総合型の事業形態になるはずです。またこういった多様性だけでなく，クラブに以下の視点が必要です。\n　①活動目的に沿った事業を適切に行っている\n　②「活動理念を実現しうるものかどうか」を判断できている\n　③できる限り高い品質を維持するため，環境やプログラムをチェックや指導者の育成などを行っている　"]
[]
[null,"１　地域住民のスポーツ欲求に応える，地域社会的な事業を継続するため，クラブのスポーツプ",null,null,null,null,null,null,null,null,null,null,"点数"]
[null,null,"ログラムは「多種目型」または「多志向型」または「多世代型」で構成されている。"]
[null,null,null,null,0,"構成している(6)",null,0,"構成していない(0)",null,null,{"$f":"IF(E30=-1,7,IF(H30=-1,1,0))","v":0},{"$f":"IF(L30>=1,L30-1,0)","v":0}]
["○","２　多種目のスポーツ活動（年間12回以上の定期的な活動）を実施している"]
[null,null,null,null,0,"実施している(2)",null,0,"実施していない(0)",null,null,{"$f":"IF(E32=-1,3,IF(H32=-1,1,0))","v":0},{"$f":"IF(L32>=1,L32-1,0)","v":0}]
["○","３　多世代（いずれか２世代の会員）を対象としている"]
[null,null,null,null,0,"２世代以上の会員がいる(2)",null,0,"１世代の会員しかいない(0)",null,null,{"$f":"IF(E34=-1,3,IF(H34=-1,1,0))","v":0},{"$f":"IF(L34>=1,L34-1,0)","v":0}]
[null,"４　クラブの理事やマネジャーは，クラブが現在実施しているプログラムについて熟知している。"]
[null,null,null,null,0,"概ね熟知している(2)",null,0,"あまり熟知していない(0)",null,null,{"$f":"IF(E36=-1,3,IF(H36=-1,1,0))","v":0},{"$f":"IF(L36>=1,L36-1,0)","v":0}]
[null,"５　新規のプログラムと現行のプログラムの改善あるいは中止の検討を理事会などで定期的に行っている。"]
[null,null,null,null,0,"定期的に行っている(3)",null,0,"定期的ではないが行っている(2)",null,null,{"$f":"IF(E38=-1,4,IF(H38=-1,3,IF(E39=-1,2,IF(H39=-1,1,0))))","v":0},{"$f":"IF(L38>=1,L38-1,0)","v":0}]
[null,null,null,null,0,"あまり行っていない(1)",null,0,"全く行っていない(0)"]
[null,"６　スポーツ指導者は，クラブの理念を理解している（指導者を採用する際に説明をしている）"]
[null,null,null,null,0,"理解している(3)",null,0,"やや理解している(2)",null,null,{"$f":"IF(E41=-1,4,IF(H41=-1,3,IF(E42=-1,2,IF(H42=-1,1,0))))","v":0},{"$f":"IF(L41>=1,L41-1,0)","v":0}]
[null,null,null,null,0,"あまり理解していない(1)",null,0,"全く理解していない(0)"]
[null,"７　クラブの教室やプログラムは指導者に依存せず，クラブ組織として維持されている。"]
[null,null,null,null,0,"指導者が替わってもプログラムは概ね変わらない(3)",null,0,"指導者が替わると多少サービスが落ちる(2)",null,null,{"$f":"IF(E44=-1,4,IF(H44=-1,3,IF(E45=-1,2,IF(H45=-1,1,0))))","v":0},{"$f":"IF(L44>=1,L44-1,0)","v":0}]
[null,null,null,null,0,"指導者が替わるとプログラムも変わる(1)",null,0,"指導者が替わるとプログラムが終了する(0)"]
[null,"８　スポーツ指導者を確保し，その対価について合意している。",null,null,null,null,null,null,null,null,null,null,"点数"]
[null,null,null,null,0,"合意文書を取り交わしている(2)",null,0,"口頭で説明・合意している(1)",null,null,{"$f":"IF(E47=-1,3,IF(H47=-1,2,IF(E48=-1,1,0)))","v":0},{"$f":"IF(L47>=1,L47-1,0)","v":0}]
[null,null,null,null,0,"全く何もしていない(0)"]
[null,"９　スポーツ指導者の資質向上を図っている。"]
[null,null,null,null,0,"定期的に研修会に参加させている(3)",null,0,"指導者用の図書を準備している(2)",null,null,{"$f":"IF(E50=-1,4,IF(H50=-1,3,IF(E51=-1,2,IF(H51=-1,1,0))))","v":0},{"$f":"IF(L50>=1,L50-1,0)","v":0}]
[null,null,null,null,0,"研修などの情報提供をしている(1)",null,0,"全く図っていない(0)"]
["○","10　定期的なスポーツ活動において，少なくとも当該競技の公認スポーツ指導者資格を有したスポーツ"]
[null,null,"指導者を配置している"]
[null,null,null,null,0,"配置している(2)",null,0,"配置していない(0)",null,null,{"$f":"IF(E54=-1,3,IF(H54=-1,1,0))","v":0},{"$f":"IF(L54>=1,L54-1,0)","v":0}]
[null,"11　クラブが加入している保険は，適切な種類とレベルである（傷害保険・損害保険など）"]
[null,null,null,null,0,"複数種の保険に加入している(3)",null,0,"単一の保険に加入している(2)",null,null,{"$f":"IF(E56=-1,4,IF(H56=-1,3,IF(E57=-1,2,IF(H57=-1,1,0))))","v":0},{"$f":"IF(L56>=1,L56-1,0)","v":0}]
[null,null,null,null,0,"保険は個人加入を前提としている(1)",null,0,"全く関与していない(0)"]
[null,"12　クラブは，危機管理に対する委員とスタッフの行動指針を定めたり，講習を行ったりしている。"]
[null,null,null,null,0,"実施している(2)",null,0,"実施していない(0)",null,null,{"$f":"IF(E59=-1,3,IF(H59=-1,1,0))","v":0},{"$f":"IF(L59>=1,L59-1,0)","v":0}]
["○","13　安全管理体制を整備している"]
[null,null,null,null,0,"整備している(2)",null,0,"整備していない(0)",null,null,{"$f":"IF(E61=-1,3,IF(H61=-1,1,0))","v":0},{"$f":"IF(L61>=1,L61-1,0)","v":0}]
[null,null,null,null,null,null,null,null,"経営状況確認２の合計",null,{"$f":"SUM(M30:M61)","v":0},null,"／35"]
[]
["■経営状況確認３：財政的な自立"]
[]
[null,"　原則として，クラブは地域住民の自発性により設立しているので，地域による主体的な経営が求められます。そのため財政面では，特定の資源に依存せず，「会費」「寄付金収入」「自主事業収入」といった自主財源比率の向上に努めることが大切です。「委託事業収入」「補助金・助成金収入」など，一時的なまとまりのある財源と将来性を考慮してバランスをとることが重要です。その基礎資料となるのが次のものです。\n　①財務諸表を作成する\n　②クラブは資金が有効に運用されているかどうかチェックし，予算の策定，承認，活動への投資を監督\n　　するという監査の手続きを踏まえている\n　③クラブの収支を最終的にクラブの内外に証明している\n　④理事を含め関係者はクラブの将来のために資金が適切に投資されるよう意思決定している"]
[]
[null,"１　クラブの日常の経理を簿記の原則（単式簿記による現金出納帳レベル）に則って，きちんと",null,null,null,null,null,null,null,null,null,null,"点数"]
[null,null,"管理できる。"]
[null,null,null,null,0,"概ねできる(2)",null,0,"全くできない(0)",null,null,{"$f":"IF(E70=-1,3,IF(H70=-1,1,0))","v":0},{"$f":"IF(L70>=1,L70-1,0)","v":0}]
["☆","２　非営利組織である（事業を通して得た利益を出資者に再分配していない）。"]
[null,null,null,null,0,"そうである(2)",null,0,"そうではない(0)",null,null,{"$f":"IF(E72=-1,3,IF(H72=-1,1,0))","v":0},{"$f":"IF(L72>=1,L72-1,0)","v":0}]
["○","３　年度末に財務諸表（決算書）を作り，理事会や総会で報告できる。（○議決されている）"]
[null,null,null,null,0,"してもらっている(2)",null,0,"全くしていない(0)",null,null,{"$f":"IF(E74=-1,3,IF(H74=-1,1,0))","v":0},{"$f":"IF(L74>=1,L74-1,0)","v":0}]
["○","４　クラブに監査の手続き（監事）を設け，財務・会計・経理の監査をしてもらっている。"]
[null,null,null,null,0,"してもらっている(2)",null,0,"全くしていない(0)",null,null,{"$f":"IF(E76=-1,3,IF(H76=-1,1,0))","v":0},{"$f":"IF(L76>=1,L76-1,0)","v":0}]
[null,"５　クラブの自主財源比率が高い。"]
[null,null,null,null,0,"自主財源比率が70％以上である(2)",null,0,"自主財源比率が30％以上である(1)",null,null,{"$f":"IF(E78=-1,3,IF(H78=-1,3,IF(E79=-1,1,0)))","v":0},{"$f":"IF(L78>=1,L78-1,0)","v":0}]
[null,null,null,null,0,"自主財源比率が30％未満である(0)"]
[null,"６　クラブ関係者（理事，委員，経営参画会員など）は，全員，直接的・間接的にクラブに資金など"]
[null,null,"を提供している（クラブ会費を払っている。）。"]
[null,null,null,null,0,"全員提供している(2)",null,0,"一部提供していない人がいる(1)",null,null,{"$f":"IF(E82=-1,3,IF(H82=-1,2,IF(E83=-1,1,0)))","v":0},{"$f":"IF(L82>=1,L82-1,0)","v":0}]
[null,null,null,null,0,"誰も提供していない(0)"]
[null,"７　理事会は，事業計画と予算が適切であるかどうか理解している（総会議案についてきちんと話し"]
[null,null,"合いがされている）"]
[null,null,null,null,0,"理解している(3)",null,0,"やや理解している(2)",null,null,{"$f":"IF(E86=-1,4,IF(H86=-1,3,IF(E87=-1,2,IF(H87=-1,1,0))))","v":0},{"$f":"IF(L86>=1,L86-1,0)","v":0}]
[null,null,null,null,0,"あまり理解していない(1)",null,0,"全く理解していない(0)"]
[null,"８　理事会は，クラブマネジャーから定期的に，会計に関する報告・連絡・相談を受けている。"]
[null,null,null,null,0,"定期的に受けている(3)",null,0,"定期的ではないが受けている(2)",null,null,{"$f":"IF(E89=-1,4,IF(H89=-1,3,IF(E90=-1,2,IF(H90=-1,1,0))))","v":0},{"$f":"IF(L89>=1,L89-1,0)","v":0}]
[null,null,null,null,0,"あまり受けていない(1)",null,0,"全く受けていない(0)"]
[null,null,null,null,null,null,null,null,"経営状況確認３の合計",null,{"$f":"SUM(M70:M89)","v":0},null,"／18"]
[]
["■経営状況確認４：自律的な意思決定"]
[]
[null,"　地域住民の自発性を基盤にするクラブとしては，その原点を見失わないように，以下のように団体としての自立した統治も機能している点が重要です。\n　①特定の個人や組織（行政，企業，政党など）の意思にコントロールされず，独立した事業計画や予算を\n　　決定している\n　②対外的な独立性だけでなく，運営の仕組みも，理事会や総会がある程度の頻度，出席率で定期的に開か\n　　れている"]
[]
["○","１　クラブの設立者および経営者は地域住民が主体となっている",null,null,null,null,null,null,null,null,null,null,"点数"]
[null,null,null,null,0,"なっている(3)",null,0,"なっていない(0)",null,null,{"$f":"IF(E98=-1,4,IF(H98=-1,1,0))","v":0},{"$f":"IF(L98>=1,L98-1,0)","v":0}]
[null,"２　設立総会など，年１回以上は，総会が開かれ，地域住民を主体とした会員に説明責任を果たす仕"]
[null,null,"組みがある。"]
[null,null,null,null,0,"仕組みがある(3)",null,0,"仕組みがない(0)",null,null,{"$f":"IF(E101=-1,4,IF(H101=-1,1,0))","v":0},{"$f":"IF(L101>=1,L101-1,0)","v":0}]
[null,"３　理事会や総会では，会議の議案や資料を事前に余裕を持って配布（配信）している。"]
[null,null,null,null,0,"余裕を持って配布している（１週間前）(3)",null,0,"やや余裕をもって配布している（５日前配布）(2)",null,null,{"$f":"IF(E103=-1,4,IF(H103=-1,3,IF(E104=-1,2,IF(H104=-1,1,0))))","v":0},{"$f":"IF(L103>=1,L103-1,0)","v":0}]
[null,null,null,null,0,"あまり余裕がない（前日配布）(1)",null,0,"全く事前配布をしていない(0)"]
[null,"４　理事会は，クラブの定款（規約）を定期的に見直している。"]
[null,null,null,null,0,"見直している(3)",null,0,"多少見直している(2)",null,null,{"$f":"IF(E106=-1,4,IF(H106=-1,3,IF(E107=-1,2,IF(H107=-1,1,0))))","v":0},{"$f":"IF(L106>=1,L106-1,0)","v":0}]
[null,null,null,null,0,"あまり見直していない(1)",null,0,"全く見直していない(0)"]
[null,"５　理事会は，クラブの定款（規約）を熟知している。"]
[null,null,null,null,0,"熟知している(3)",null,0,"多少熟知している(2)",null,null,{"$f":"IF(E109=-1,4,IF(H109=-1,3,IF(E110=-1,2,IF(H110=-1,1,0))))","v":0},{"$f":"IF(L109>=1,L109-1,0)","v":0}]
[null,null,null,null,0,"あまり熟知していない(1)",null,0,"全く熟知していない(0)"]
[null,"６　理事の多くは，クラブの活動に積極的に関わっている。"]
[null,null,null,null,0,"積極的である(3)",null,0,"やや積極的である(2)",null,null,{"$f":"IF(E112=-1,4,IF(H112=-1,3,IF(E113=-1,2,IF(H113=-1,1,0))))","v":0},{"$f":"IF(L112>=1,L112-1,0)","v":0}]
[null,null,null,null,0,"あまり積極的でない(1)",null,0,"全く積極的でない(0)"]
[null,"７　理事会は現場の業務執行上の案件ではなく，長期の重要な活動方針について議論している。"]
[null,null,null,null,0,"長期的な視野で議論している(3)",null,0,"やや長期的な視野で議論している(2)",null,null,{"$f":"IF(E115=-1,4,IF(H115=-1,3,IF(E116=-1,2,IF(H116=-1,1,0))))","v":0},{"$f":"IF(L115>=1,L115-1,0)","v":0}]
[null,null,null,null,0,"現場の案件が多少議論される(1)",null,0,"現場の案件だけが議論される(0)"]
[null,"８　理事や会員には，理事会や総会時に議論や質問の機会を十分に与えられている。"]
[null,null,null,null,0,"十分に与えられている(3)",null,0,"やや与えられている(2)",null,null,{"$f":"IF(E118=-1,4,IF(H118=-1,3,IF(E119=-1,2,IF(H119=-1,1,0))))","v":0},{"$f":"IF(L118>=1,L118-1,0)","v":0}]
[null,null,null,null,0,"あまり与えられていない(1)",null,0,"全く与えられていない(0)"]
[null,"９　会議（運営委員会など）は，理事や事務局・指導者・ボランティアの責任を果たす上で適切な頻度で"]
[null,null,"開かれている（最低でも四半期ごと）。"]
[null,null,null,null,0,"十分適切である(3)",null,0,"やや不十分である(2)",null,null,{"$f":"IF(E122=-1,4,IF(H122=-1,3,IF(E123=-1,2,IF(H123=-1,1,0))))","v":0},{"$f":"IF(L122>=1,L122-1,0)","v":0}]
[null,null,null,null,0,"会議が少ない(1)",null,0,"会議が全く開かれていない(0)"]
[null,"10　会議（運営委員会など）をする際，欠席者は少ない。"]
[null,null,null,null,0,"欠席者はほぼいない(3)",null,0,"欠席者がややいる(2)",null,null,{"$f":"IF(E125=-1,4,IF(H125=-1,3,IF(E126=-1,2,IF(H126=-1,1,0))))","v":0},{"$f":"IF(L125>=1,L125-1,0)","v":0}]
[null,null,null,null,0,"欠席者がやや多い(1)",null,0,"欠席者が多すぎて，会議の機能を果たせない(0)"]
[null,null,null,null,null,null,null,null,"経営状況確認４の合計",null,{"$f":"SUM(M98:M125)","v":0},null,"／30"]
[]
["☆■経営状況確認５：連携体制の確立"]
[]
[null,"　総合型クラブが地域に根ざし，誰からも愛され，必要とされるために，当該地域の風土・文化・人口・経済事情などに適合していることが求められます。地域の課題の解決が行えるよう，次の組織と望ましい連携・協力体制を整えていることが必要です。\n　①学校や行政，地域内の諸組織・団体（自治会・町内会・公民館など）など\n　②既存スポーツ団体（少年団・単一種目クラブなど）\n　③地元企業やNPOなど"]
[]
["☆","１　市町村行政との情報交換がされている（この診断シートを市町村担当者との面談を通して広域",null,null,null,null,null,null,null,null,null,null,"点数"]
[null,null,"スポーツセンターへ提出する）"]
[null,null,null,null,0,"情報交換されている(3)",null,0,"情報交換されていない(0)",null,null,{"$f":"IF(E135=-1,4,IF(H135=-1,1,0))","v":0},{"$f":"IF(L135>=1,L135-1,0)","v":0}]
["☆","２　市町村行政との連携がとれている"]
[null,null,null,null,0,"行政主催の事業など連携・協力している(3)",null,0,"定期的に行政と情報交換等している(2)",null,null,{"$f":"IF(E137=-1,4,IF(H137=-1,3,IF(E138=-1,2,IF(H138=-1,1,0))))","v":0},{"$f":"IF(L137>=1,L137-1,0)","v":0}]
[null,null,null,null,0,"有事の際，行政に相談している(1)",null,0,"連携をとっていない(0)"]
["☆","３　学校との連携がとれている",null,null,null,null,null,null,null,null,null,null,"点数"]
[null,null,null,null,0,"共同事業を実施している(3)",null,0,"行事や授業，部活動等に積極的に協力している(2)",null,null,{"$f":"IF(E140=-1,4,IF(H140=-1,3,IF(E141=-1,2,IF(H141=-1,1,0))))","v":0},{"$f":"IF(L140>=1,L140-1,0)","v":0}]
[null,null,null,null,0,"依頼があれば協力している(1)",null,0,"協力していない(0)"]
["☆","４　地域自治組織との連携がとれている"]
[null,null,null,null,0,"共同事業を実施している(3)",null,0,"地域行事に積極的に協力している(2)",null,null,{"$f":"IF(E143=-1,4,IF(H143=-1,3,IF(E144=-1,2,IF(H144=-1,1,0))))","v":0},{"$f":"IF(L143>=1,L143-1,0)","v":0}]
[null,null,null,null,0,"依頼があれば協力している(1)",null,0,"協力していない(0)"]
["☆","５　地域スポーツ団体（スポーツ少年団，単一種目クラブ・団体，地区体育協会，他の総合型クラ"]
[null,null,null,"ブなど）との連携が取れている。"]
[null,null,null,null,0,"とれている(2)",null,0,"とれていない(0)",null,null,{"$f":"IF(E147=-1,3,IF(H147=-1,1,0))","v":0},{"$f":"IF(L147>=1,L147-1,0)","v":0}]
["☆","６　地元企業やNPOなどとの連携がとれている"]
[null,null,null,null,0,"とれている(2)",null,0,"とれていない(0)",null,null,{"$f":"IF(E149=-1,3,IF(H149=-1,1,0))","v":0},{"$f":"IF(L149>=1,L149-1,0)","v":0}]
[null,null,null,null,null,null,null,null,"経営状況確認５の合計",null,{"$f":"SUM(M129:M149)","v":0},null,"／16"]
[]
["■経営状況確認６：事務局体制"]
[]
[null,"　事務局体制には，それぞれの組織の事業内容や事業規模により違いはあるが，常勤スタッフの有無に関わらず，外部からの連絡がいつでもきちんととれる体制を整えることが大切です。\n　さらに，次の視点も大切です。\n　①組織として事業を実施している限り，情報が個人にのみ所有されることがないように，組織内部で情報\n　　を共有でするための連絡調整の仕組みを作る\n　②担当する業務の範囲や責任の所在を明確にする\n　③物事を進める上での決裁の仕組みや権限の所在について内部で確実に協議し，共通理解を図る"]
[]
[null,"１　拠点となる事務所の住所が公開されている。",null,null,null,null,null,null,null,null,null,null,"点数"]
[null,null,null,null,0,"公開されている(2)",null,0,"公開されていない(0)",null,null,{"$f":"IF(E157=-1,3,IF(H157=-1,1,0))","v":0},{"$f":"IF(L157>=1,L157-1,0)","v":0}]
[null,"２　通常，日中の時間帯に電話による連絡・相談ができ，スタッフが対応できる。"]
[null,null,null,null,0,"対応できる(2)",null,0,"対応できない(0)",null,null,{"$f":"IF(E159=-1,3,IF(H159=-1,1,0))","v":0},{"$f":"IF(L159>=1,L159-1,0)","v":0}]
[null,"３　クラブマネジャーもしくは事務局員（アシスタントマネジャー）がいる。"]
[null,null,null,null,0,"いる(2)",null,0,"いない(0)",null,null,{"$f":"IF(E161=-1,3,IF(H161=-1,1,0))","v":0},{"$f":"IF(L161>=1,L161-1,0)","v":0}]
["○","４　クラブマネジャーは有資格者（公認クラブマネジャー，公認アシスタントマネジャー）である。"]
[null,null,null,null,0,"資格を持っている(2)",null,null,"資格を持っていない(0)",null,null,{"$f":"IF(E163=-1,3,IF(H163=-1,1,0))","v":0},{"$f":"IF(L163>=1,L163-1,0)","v":0}]
[null,"５　クラブマネジャーの職務規程は，明文化され，基本的責任が明確となっている。（理事の職務との区別）"]
[null,null,null,null,0,"職務規程が明確になっている(3)",null,0,"明文化されてはいないが，明確である(2)",null,null,{"$f":"IF(E165=-1,4,IF(H165=-1,3,IF(E166=-1,2,IF(H166=-1,1,0))))","v":0},{"$f":"IF(L165>=1,L165-1,0)","v":0}]
[null,null,null,null,0,"あまり明確になっていない(1)",null,0,"全く明確になっていない(0)"]
[null,"６　理事とクラブマネジャーの役割は，それぞれ明確に定義され，理解されている。"]
[null,null,null,null,0,"明確に定義され，理解されている(3)",null,0,"定義はあるが，あまり理解されていない(2)",null,null,{"$f":"IF(E168=-1,4,IF(H168=-1,3,IF(E169=-1,2,IF(H169=-1,1,0))))","v":0},{"$f":"IF(L168>=1,L168-1,0)","v":0}]
[null,null,null,null,0,"あまり定義も理解もされていない(1)",null,0,"全く定義も理解もされていない(0)"]
[null,"７　クラブは，現場に対する十分な権限と責任をクラブマネジャーに与えている（緊急性の高い事"]
[null,null,"案に対する権限と責任）"]
[null,null,null,null,0,"十分与えている(3)",null,0,"多少与えている(2)",null,null,{"$f":"IF(E172=-1,4,IF(H172=-1,3,IF(E173=-1,2,IF(H173=-1,1,0))))","v":0},{"$f":"IF(L172>=1,L172-1,0)","v":0}]
[null,null,null,null,0,"あまり与えていない(1)",null,0,"全く与えていない(0)"]
[null,"８　クラブマネジャーの資質能力向上のために，適切な機会（クラブマネジャー研修会などの参加）"]
[null,null,"を提供する方針がある。"]
[null,null,null,null,0,"方針がある(3)",null,0,"機会があれば提供する(2)",null,null,{"$f":"IF(E176=-1,4,IF(H176=-1,3,IF(E177=-1,2,IF(H177=-1,1,0))))","v":0},{"$f":"IF(L176>=1,L176-1,0)","v":0}]
[null,null,null,null,0,"あまり提供しない(1)",null,0,"全く提供しない(0)"]
[null,null,null,null,null,null,null,null,"経営状況確認６の合計",null,{"$f":"SUM(M155:M177)","v":0},null,"／20"]
[]
[null,null,null,null,null,null,null,null,null,"点数","満点",null,"割合"]
[null,null,null,null,null,null,1,null,"明確な理念",{"$f":"K22","v":0},20,null,{"$f":"J181/K181*100","v":0}]
[null,null,null,null,null,null,2,null,"継続的な事業展開",{"$f":"K62","v":0},35,null,{"$f":"J182/K182*100","v":0}]
[null,null,null,null,null,null,3,null,"財政的な自立",{"$f":"K91","v":0},18,null,0]
[null,null,null,null,null,null,4,null,"自律的な意思決定",{"$f":"K127","v":0},30,null,0]
[null,null,null,null,null,null,5,null,"連携体制の確立",{"$f":"K150","v":0},16,null,0]
[null,null,null,null,null,null,6,null,"事務局体制",{"$f":"K178","v":0},20,null,0]
[]
[]
[]
[]
["※　クラブから行政（県又は市町村）への要望，意見等"]

{"sheet":"集計用(触らないでください)","index":2,"n_rows":2,"n_cols":65,"rows_kept":2,"cut":false,"hidden":false,"merged":[]}
["クラブ名","1-1","1-2","1-3","1-4","1-5","2-1","2-2","2-3","2-4","2-5","2-6","2-7","2-8","2-9","2-10","2-11","2-12","2-13","3-1","3-2","3-3","3-4","3-5","3-6","3-7","3-8","4-1","4-2","4-3","4-4","4-5","4-6","4-7","4-8","4-9","4-10","5-1","5-2","5-3","5-4","5-5","5-6","6-1","6-2","6-3","6-4","6-5","6-6","6-7","6-8","1計","2計","3計","4計","5計","6計","全","1割","2割","3割","4割","5割","6割","全割合平均"]
[{"$f":"クラブ診断シート!I1","v":0},{"$f":"クラブ診断シート!M8","v":0},{"$f":"クラブ診断シート!M10","v":0},{"$f":"クラブ診断シート!M12","v":0},{"$f":"クラブ診断シート!M16","v":0},{"$f":"クラブ診断シート!M20","v":0},{"$f":"クラブ診断シート!M30","v":0},{"$f":"クラブ診断シート!M32","v":0},{"$f":"クラブ診断シート!M34","v":0},{"$f":"クラブ診断シート!M36","v":0},{"$f":"クラブ診断シート!M38","v":0},{"$f":"クラブ診断シート!M41","v":0},{"$f":"クラブ診断シート!M44","v":0},{"$f":"クラブ診断シート!M47","v":0},{"$f":"クラブ診断シート!M50","v":0},{"$f":"クラブ診断シート!M54","v":0},{"$f":"クラブ診断シート!M56","v":0},{"$f":"クラブ診断シート!M59","v":0},{"$f":"クラブ診断シート!M61","v":0},{"$f":"クラブ診断シート!M70","v":0},{"$f":"クラブ診断シート!M72","v":0},{"$f":"クラブ診断シート!M74","v":0},{"$f":"クラブ診断シート!M76","v":0},{"$f":"クラブ診断シート!M78","v":0},{"$f":"クラブ診断シート!M82","v":0},{"$f":"クラブ診断シート!M86","v":0},{"$f":"クラブ診断シート!M89","v":0},{"$f":"クラブ診断シート!M98","v":0},{"$f":"クラブ診断シート!M101","v":0},{"$f":"クラブ診断シート!M103","v":0},{"$f":"クラブ診断シート!M106","v":0},{"$f":"クラブ診断シート!M109","v":0},{"$f":"クラブ診断シート!M112","v":0},{"$f":"クラブ診断シート!M115","v":0},{"$f":"クラブ診断シート!M118","v":0},{"$f":"クラブ診断シート!M122","v":0},{"$f":"クラブ診断シート!M125","v":0},{"$f":"クラブ診断シート!M135","v":0},{"$f":"クラブ診断シート!M137","v":0},{"$f":"クラブ診断シート!M140","v":0},{"$f":"クラブ診断シート!M143","v":0},{"$f":"クラブ診断シート!M147","v":0},{"$f":"クラブ診断シート!M149","v":0},{"$f":"クラブ診断シート!M157","v":0},{"$f":"クラブ診断シート!M159","v":0},{"$f":"クラブ診断シート!M161","v":0},{"$f":"クラブ診断シート!M163","v":0},{"$f":"クラブ診断シート!M165","v":0},{"$f":"クラブ診断シート!M168","v":0},{"$f":"クラブ診断シート!M172","v":0},{"$f":"クラブ診断シート!M176","v":0},{"$f":"SUM(B2:F2)","v":0},{"$f":"SUM(G2:S2)","v":0},{"$f":"SUM(T2:AA2)","v":0},{"$f":"SUM(AB2:AK2)","v":0},{"$f":"SUM(AL2:AQ2)","v":0},{"$f":"SUM(AR2:AY2)","v":0},{"$f":"SUM(AZ2:BE2)","v":0},{"$f":"AZ2/20*100","v":0},{"$f":"BA2/36*100","v":0},{"$f":"BB2/18*100","v":0},{"$f":"BC2/30*100","v":0},{"$f":"BD2/16*100","v":0},{"$f":"BE2/20*100","v":0},{"$f":"SUM(BG2:BL2)/6","v":0}]